[Event "GER-chT States Women 2022"]
[Site "Braunfels"]
[Date "2022.06.19"]
[Round "5.1"]
[White "Steinbacher, Claudia"]
[Black "Cosma, Elena-Luminita"]
[Result "1/2-1/2"]
[ECO "D40"]
[WhiteElo "2020"]
[BlackElo "2277"]
[Annotator "TA"]
[PlyCount "58"]
[EventDate "2022.06.15"]
[EventType "swiss"]
[EventCountry "GER"]
[SourceTitle "playchess.com"]
[Source "ChessBase"]
[SourceQuality "1"]
[TimeControl "40/5400+30:1800+30"]

{[%evp 13,58,18,10,14,10,17,0,-15,72,17,15,6,29,22,33,12,21,17,72,11,10,8,0,12,23,22,24,20,23,29,18,14,12,11,9,8,13,12,12,17,26,13,12,12,12,9,10]} 1. d4 {[%emt 0:00:02]} d5 {[%emt 0:00:06]} 2. c4 {[%emt 0:00:05]} e6 {[%emt 0:00:05]} 3. Nf3 {[%emt 0:00:16]} Nf6 {[%emt 0:00:06]} 4. Nc3 {[%emt 0:00:06]} c5 {[%emt 0:00:09]} 5. Bg5 {[%emt 0:01:58]} cxd4 {[%emt 0:21:40]} 6. Nxd4 {[%emt 0:01:45]} Be7 {[%emt 0:03:29]} 7. e3 {[%emt 0:05:15] 7.cxd5 is more advanced technology.} O-O {[%emt 0:01:15]} 8. Be2 {[%emt 0:04:20] D50: Queen's Gambit Declined: Dutch-Peruvian Gambit.} dxc4 {[%emt 0:02:17]} 9. Bxc4 {[%emt 0:00:09]} Qa5 {[%emt 0:06:40]} 10. Bh4 {[%emt 0:09:51]} e5 {[%emt 0:21:19]} (10... Bd7 $11) 11. Nde2 {[%emt 0:08:35] [#]} ({White should play} 11. Bxf6 $16 Bxf6 12. Ndb5) 11... Qb4 $146 {[%emt 0:11:31]} ({Predecessor:} 11... Nc6 12. O-O Qb4 13. Qb3 Qxb3 14. Bxb3 Na5 15. Bxf6 Bxf6 16. Bd5 Rb8 17. Ne4 Be7 {½-½ (43) Amesz,J-Van Dongen,C Leiden 1997}) 12. Qb3 {[%emt 0:02:47]} Nc6 {[%emt 0:02:35]} 13. Qxb4 {[%emt 0:06:07]} Bxb4 {[%emt 0:00:24]} 14. a3 {[%emt 0:00:43]} Be7 {[%emt 0:01:52]} 15. O-O {[%emt 0:02:00]} Nd7 {[%emt 0:01:24]} (15... Be6 $11 {keeps the balance.} 16. Bxe6 fxe6) 16. Bg3 {[%emt 0:01:42] White is more active.} (16. Bxe7 $16 Nxe7 17. Ne4) 16... Nb6 $11 {[%emt 0:00:49]} 17. Ba2 {[%emt 0:00:08]} Rd8 {[%emt 0:02:38]} 18. Rad1 {[%emt 0:01:05]} Rxd1 {[%emt 0:05:32]} 19. Rxd1 {[%emt 0:00:03]} Kf8 {[%emt 0:00:11]} 20. Nd5 {[%emt 0:12:24]} Nxd5 {[%emt 0:00:50]} 21. Bxd5 {[%emt 0:00:03]} ({Stronger than} 21. Rxd5 Be6 22. Kf1 Bxd5 23. Bxd5 Rd8 $17) 21... f6 {[%emt 0:00:10]} 22. Nc3 {[%emt 0:04:25]} Bd7 {[%emt 0:03:06]} 23. f4 {[%emt 0:03:12]} exf4 {[%emt 0:02:57]} 24. exf4 {[%emt 0:00:02]} Bc5+ {[%emt 0:07:44]} 25. Bf2 {[%emt 0:00:11]} Bxf2+ {[%emt 0:00:04]} 26. Kxf2 {[%emt 0:00:05]} Be8 {[%emt 0:00:19]} 27. Bf3 {[%emt 0:03:31]} Rd8 {[%emt 0:01:28] The position is equal.} 28. Rxd8 {[%emt 0:01:20]} Nxd8 {[%emt 0:00:05]} 29. Ke3 {[%emt 0:00:46]} Ke7 {[%emt 0:01:05] Weighted Error Value: White=0.14 (very precise) /Black=0.13 (very precise)} 1/2-1/2

[Event "GER-chT States Women 2022"]
[Site "Braunfels"]
[Date "2022.06.19"]
[Round "5.2"]
[White "Voicu-Jagodzinsky, Carmen"]
[Black "Peglau, Dora"]
[Result "1/2-1/2"]
[ECO "B12"]
[WhiteElo "2291"]
[BlackElo "2008"]
[Annotator "TA"]
[PlyCount "79"]
[EventDate "2022.06.15"]
[EventType "swiss"]
[EventCountry "GER"]
[SourceTitle "playchess.com"]
[Source "ChessBase"]
[SourceQuality "1"]
[TimeControl "40/5400+30:1800+30"]

{[%evp 10,79,13,17,26,26,33,28,22,13,18,0,9,16,20,16,12,22,14,20,20,18,5,0,11,0,0,1,31,20,18,25,41,33,57,49,55,16,43,70,80,75,147,44,98,98,98,98,98,98,91,0,0,0,0,0,101,101,93,0,261,252,263,246,252,216,216,-156,0,0,204,-97]} 1. e4 {[%emt 0:00:01]} c6 {[%emt 0:00:15]} 2. d4 {[%emt 0:00:06]} d5 {[%emt 0:00:03]} 3. e5 {[%emt 0:00:04]} Bf5 {[%emt 0:00:03]} 4. Nd2 {[%emt 0:00:04]} e6 {[%emt 0:00:49]} 5. Nb3 {[%emt 0:00:11]} Nd7 {[%emt 0:00:49]} 6. Nf3 {[%emt 0:01:07]} Ne7 {[%emt 0:06:58] B12: Caro-Kann: Advance Variation.} 7. Be2 {[%emt 0:00:38]} Bg6 {[%emt 0:03:13]} 8. O-O {[%emt 0:01:53]} Nf5 {[%emt 0:01:52] White has an edge.} 9. a4 {[%emt 0:01:11]} a6 {[%emt 0:05:02]} 10. Bd2 {[%emt 0:08:04]} c5 $1 {[%emt 0:04:00] [#]} 11. c3 $146 {[%emt 0:06:24]} ({Predecessor:} 11. c4 dxc4 12. Bxc4 cxd4 13. Re1 Be7 14. a5 O-O 15. Bd3 Nc5 16. Nxc5 Bxc5 17. b4 {0-1 (71) Can,M (2105)-Torres Hernandez,L (1884) Chess.com INT 2021}) 11... c4 {[%emt 0:07:14]} 12. Nc1 {[%emt 0:00:07]} b5 {[%emt 0:04:45]} 13. g4 {[%emt 0:05:14]} Ne7 {[%emt 0:00:55]} 14. axb5 {[%emt 0:07:37]} axb5 {[%emt 0:00:15]} 15. Rxa8 {[%emt 0:00:17]} Qxa8 {[%emt 0:00:08]} 16. Nh4 {[%emt 0:00:15]} Nc6 {[%emt 0:08:10]} 17. Nxg6 {[%emt 0:10:16]} hxg6 {[%emt 0:00:20]} 18. f4 {[%emt 0:00:19]} Qd8 {[%emt 0:06:31]} (18... Qa1 {is more complex.} 19. Qc2 b4 20. f5 exf5 21. gxf5 bxc3 22. bxc3 Nxd4 23. cxd4 Qxd4+ 24. Kh1 Qxe5 25. Bf4 Qxf5 26. Qxf5 gxf5 27. Bf3 Nf6) 19. Be1 {[%emt 0:00:49]} Be7 {[%emt 0:05:42]} 20. Bf3 {[%emt 0:01:44]} Nb6 {[%emt 0:04:12]} 21. Bg2 {[%emt 0:02:49]} b4 {[%emt 0:12:11]} 22. Ne2 {[%emt 0:04:24][%cal Bc1e2,Be2g3,Bg3h5][%mdl 32]} b3 {[%emt 0:06:38]} 23. Ng3 {[%emt 0:10:40]} Qc8 {[%emt 0:05:52]} 24. f5 {[%emt 0:01:41]} gxf5 {[%emt 0:01:26]} 25. gxf5 {[%emt 0:00:05] aiming for Nh5.} Kd7 {[%emt 0:08:26]} (25... g6 $142) 26. Qg4 {[%emt 0:03:32]} (26. Nh5 $1 $16) 26... Qg8 {[%emt 0:01:07]} (26... g6 $1 $14) 27. fxe6+ $16 {[%emt 0:05:27]} fxe6 {[%emt 0:00:07]} 28. Nh5 {[%emt 0:00:33] Black must now prevent Nf4.} Qh7 {[%emt 0:02:09] [#]} 29. Qxe6+ $1 {[%emt 0:07:52]} Kc7 {[%emt 0:01:14]} 30. Bxd5 {[%emt 0:03:46] White is more active.} (30. Rf5 $16 g6 31. Rf6 $1 (31. Rf7 Qxh5 32. Rxe7+ Nxe7 $11) 31... Bxf6 32. Nxf6 Qxh2+ 33. Kf1 Qf4+ 34. Ke2) 30... Nxd5 $11 {[%emt 0:00:21]} 31. Qxd5 {[%emt 0:00:06]} (31. Rf7 $2 Qe4 32. Ng3 Qxe1+ $19) 31... Qxh5 {[%emt 0:00:17][%csl Gh8][%cal Rh5h2]} 32. Bg3 {[%emt 0:00:18] Hoping for e6+.} Qe2 {[%emt 0:01:32]} (32... Qg5 $11 {keeps the balance.}) 33. e6+ $16 {[%emt 0:01:08][%mdl 1024] White has strong compensation.} Kb6 {[%emt 0:00:05] And now ...Rd8 would win.} 34. Rf5 {[%emt 0:06:16]} (34. Qd7 $1 $16 {[%cal Rd7c7] White threatens Qc7+ and mate.} Qe3+ 35. Bf2 (35. Rf2 Bd8 $16) 35... Qxf2+ 36. Kxf2 (36. Rxf2 Rd8 $16)) 34... Qe3+ $2 {[%emt 0:01:11][%mdl 8192]} (34... Qd1+ $11 35. Rf1 Qg4) 35. Bf2 $1 $18 {[%emt 0:03:33]} Qc1+ {[%emt 0:01:58]} 36. Kg2 {[%emt 0:00:16]} Qc2 {[%emt 0:00:20]} (36... Qxb2 $2 37. Qb5+ Kc7 38. d5 $18) 37. Qb5+ $1 {[%emt 0:07:48]} Kc7 {[%emt 0:00:00] [#]} 38. Qd5 {[%emt 0:00:30] Against Qe4+. Dancing on a razor blade.} (38. d5 $1 $18 {Threatening mate with d6+.} Qe4+ 39. Rf3 Qg6+ 40. Rg3 (40. Bg3+ Ne5 $16) 40... Qe4+ 41. Rf3 Qg6+ 42. Bg3+ Ne5 43. Qd7+ Kb8 44. Qxe7 Qc2+ 45. Bf2 Qg6+ 46. Bg3 Qc2+ 47. Bf2 Qg6+ 48. Rg3 (48. Bg3 Qc2+ $16) 48... Qe4+ 49. Kf1 Qh1+ 50. Ke2 Qxd5 51. Qxg7) 38... Kb6 $2 {[%emt 0:00:23]} (38... Qxb2 $2 39. Qd7+ Kb6 40. d5+ Qxf2+ 41. Rxf2 $18) (38... Rd8 $17 {and life is bright.} 39. Qb5 Rd6) 39. Qb5+ {[%emt 0:00:01]} Kc7 {[%emt 0:00:09] [#]} 40. Qd5 $2 {[%emt 0:00:03] Weighted Error Value: White=0.23 (precise) /Black=0.35} ({White must play} 40. d5 $1 $18 Qe4+ 41. Rf3 Qg6+ 42. Bg3+ Ne5 43. Qd7+ Kb8 44. Qxe7 Qc2+ 45. Bf2 Qg6+ 46. Rg3 (46. Bg3 Qc2+ 47. Bf2 Qg6+ 48. Rg3 Qe4+ 49. Kf1 Qh1+ 50. Ke2 Qe4+ 51. Re3 Qc2+ 52. Kf1 Qd1+ 53. Be1 Qxd5 $18) 46... Qe4+ 47. Kf1 Qh1+ 48. Ke2 Qxd5 49. Qxg7) 1/2-1/2

[Event "GER-chT States Women 2022"]
[Site "Braunfels"]
[Date "2022.06.19"]
[Round "5.3"]
[White "Peglau, Mirjam"]
[Black "Agrest, Inna"]
[Result "1/2-1/2"]
[ECO "E81"]
[WhiteElo "1834"]
[BlackElo "2265"]
[Annotator "TA"]
[PlyCount "75"]
[EventDate "2022.06.15"]
[EventType "swiss"]
[EventCountry "GER"]
[SourceTitle "playchess.com"]
[Source "ChessBase"]
[SourceQuality "1"]
[TimeControl "40/5400+30:1800+30"]

{[%evp 16,75,52,18,46,56,52,66,76,20,82,56,63,56,84,89,120,84,110,118,170,181,177,187,175,187,182,166,168,168,183,143,172,79,183,164,198,193,199,202,247,221,213,217,276,287,415,208,208,205,198,160,166,166,302,289,331,336,330,272,233,0]} 1. d4 {[%emt 0:00:01]} Nf6 {[%emt 0:00:05]} 2. c4 {[%emt 0:00:19]} g6 {[%emt 0:00:05]} 3. f3 {[%emt 0:00:05]} Bg7 {[%emt 0:00:06]} 4. e4 {[%emt 0:00:05]} d6 {[%emt 0:00:04]} 5. Nc3 {[%emt 0:00:05]} O-O {[%emt 0:00:08]} 6. Be3 {[%emt 0:00:09]} a6 {[%emt 0:00:31]} 7. Bd3 {[%emt 0:00:49]} Nbd7 {[%emt 0:00:20]} 8. Nge2 {[%emt 0:00:16]} c5 {[%emt 0:01:05]} 9. Qd2 {[%emt 0:00:50] was the old line (9.0-0).} Re8 {[%emt 0:07:10] E81: King's Indian: Sämisch: 6th move deviations (including 6 Be3 c6).} 10. O-O {[%emt 0:00:52]} cxd4 {[%emt 0:03:23]} 11. Nxd4 {[%emt 0:00:39]} Ne5 {[%emt 0:01:51] White is slightly better.} 12. Rac1 {[%emt 0:01:00] [#] White is more active.} (12. Be2 $16) 12... Bd7 $146 {[%emt 0:13:10]} (12... e6 $11 {keeps the balance.}) ({Predecessor:} 12... Nxd3 13. Qxd3 Nd7 14. Qd2 Ne5 15. b3 Bd7 16. Rfd1 Rb8 17. a4 Nc6 18. Nce2 Na5 19. Qe1 e5 20. Bd2 Nxb3 21. Nxb3 Qb6+ 22. Nbd4 Bxa4 23. Rb1 Qa7 24. Rdc1 exd4 {½-½ (60) Jarmula,P (1549)-Zajkowska,O (1887) Warsaw 2008}) 13. Rfd1 {[%emt 0:01:33]} Rc8 {[%emt 0:01:15]} 14. b3 {[%emt 0:00:17]} e6 {[%emt 0:09:41][%cal Od6d5]} 15. Bf1 {[%emt 0:13:22]} Qe7 {[%emt 0:05:41][%cal Od6d5]} 16. Bg5 {[%emt 0:05:50]} Qf8 {[%emt 0:06:41]} 17. Nde2 {[%emt 0:03:55]} Rc6 {[%emt 0:18:58] [#]} (17... Nh5 $16) 18. f4 $1 $18 {[%emt 0:07:08]} Neg4 {[%emt 0:01:15]} 19. h3 {[%emt 0:00:17]} h6 {[%emt 0:08:18]} 20. Bh4 {[%emt 0:04:32]} (20. hxg4 hxg5 21. g3 gxf4 $15) 20... g5 {[%emt 0:00:42]} 21. fxg5 {[%emt 0:00:34]} (21. hxg4 gxh4 22. Nd4 Rcc8 $11) 21... hxg5 {[%emt 0:00:16]} 22. Bxg5 {[%emt 0:00:44]} ({Don't play} 22. Qxg5 $6 Rc5 23. Qf4 Bh6 $14) 22... Ne5 {[%emt 0:00:50]} 23. Nd4 {[%emt 0:05:24]} Rc5 {[%emt 0:00:31]} 24. Qf2 {[%emt 0:01:37]} (24. Be2 $18) 24... Nh7 {[%emt 0:01:41]} (24... Neg4 $16 {might work better.} 25. Qd2 (25. hxg4 Rxg5 26. Be2 Nxg4 $17) 25... Nh7) 25. Be3 {[%emt 0:00:37]} Ng6 {[%emt 0:05:30]} 26. Nf3 {[%emt 0:04:42]} ({Don't take} 26. Nf5 $6 exf5 27. Bxc5 dxc5 $16) 26... Rc6 {[%emt 0:00:57]} 27. Bd3 {[%emt 0:04:42]} e5 {[%emt 0:03:12]} 28. Ng5 {[%emt 0:05:58]} Nxg5 {[%emt 0:03:25]} 29. Bxg5 {[%emt 0:00:03]} Be6 {[%emt 0:01:48]} 30. Nd5 {[%emt 0:03:07]} Bxd5 {[%emt 0:00:19]} (30... Rcc8 $142 31. Be2 Bxd5) 31. cxd5 {[%emt 0:03:29]} (31. exd5 $142 Rc5 32. b4) 31... Rxc1 {[%emt 0:00:14]} 32. Rxc1 {[%emt 0:00:01]} Rc8 {[%emt 0:00:19]} 33. Qd2 {[%emt 0:03:48]} Rxc1+ {[%emt 0:03:16]} 34. Qxc1 {[%emt 0:00:07]} Qb8 {[%emt 0:00:37]} (34... Nf4 $142) 35. Be2 {[%emt 0:02:32]} Nf4 {[%emt 0:01:58]} 36. Bg4 {[%emt 0:05:01]} Qa7+ {[%emt 0:00:10]} 37. Kh1 {[%emt 0:00:02]} Qf2 {[%emt 0:00:41][%csl Gf4][%cal Rf2g2] [#]} 38. Bxf4 $2 {[%emt 0:05:33] Weighted Error Value: White=0.26 (precise) /Black=0.34} ({White should try} 38. Qc8+ $18 Bf8 39. Bf3) 1/2-1/2

[Event "GER-chT States Women 2022"]
[Site "Braunfels"]
[Date "2022.06.19"]
[Round "5.4"]
[White "Ciolacu, Alessia-Mihaela"]
[Black "Daemering, Katrin"]
[Result "1-0"]
[ECO "E73"]
[WhiteElo "2198"]
[BlackElo "1966"]
[Annotator "TA"]
[PlyCount "91"]
[EventDate "2022.06.15"]
[EventType "swiss"]
[EventCountry "GER"]
[SourceTitle "playchess.com"]
[Source "ChessBase"]
[SourceQuality "1"]
[TimeControl "40/5400+30:1800+30"]

{[%evp 10,91,63,49,61,53,51,40,49,31,62,34,75,58,64,57,71,45,70,59,68,68,70,66,65,64,98,98,197,200,197,198,225,210,206,214,490,241,458,395,376,89,108,77,107,4,5,10,40,54,94,95,93,91,74,51,64,49,50,27,227,0,13,12,53,34,71,0,94,98,147,72,83,85,382,379,883,848,975,725,721,544,622,-1302]} 1. d4 {[%emt 0:00:03]} Nf6 {[%emt 0:00:11]} 2. c4 {[%emt 0:00:05]} g6 {[%emt 0:00:18]} 3. Nc3 {[%emt 0:00:11]} Bg7 {[%emt 0:00:14]} 4. e4 {[%emt 0:00:09]} d6 {[%emt 0:00:03]} 5. Be2 {[%emt 0:00:06]} Nc6 {[%emt 0:01:24]} 6. d5 {[%emt 0:01:40]} Nb8 {[%emt 0:02:15] E73: King's Indian: Averbakh Variation without 6...c5.} 7. h4 {[%emt 0:05:44]} h5 {[%emt 0:01:08] [#]} 8. Bg5 $146 {[%emt 0:00:44]} ({Predecessor:} 8. Nh3 Nbd7 9. Be3 c5 10. f4 Nb6 11. Nf2 Bd7 12. a4 a5 13. Qd3 Qc8 14. e5 {1-0 (59) Bratic,I (2177)-Ibrahimovic,I (2061) Tuzla 2010}) 8... Nbd7 {[%emt 0:04:48] White is slightly better.} 9. Nf3 {[%emt 0:01:08][%cal Bg1f3,Bf3e1,Be1d3,Bd3f4][%mdl 32]} c6 {[%emt 0:04:43]} 10. O-O {[%emt 0:02:15]} Ng4 {[%emt 0:10:44]} 11. Qc2 {[%emt 0:09:02]} O-O {[%emt 0:09:58]} 12. Rad1 {[%emt 0:01:58]} c5 {[%emt 0:12:39]} 13. Ne1 {[%emt 0:14:21]} Nde5 {[%emt 0:02:15]} 14. Qd2 {[%emt 0:02:55]} f6 {[%emt 0:07:02]} 15. Bf4 {[%emt 0:00:32]} Nf7 {[%emt 0:00:24]} 16. Nd3 {[%emt 0:04:00]} a6 {[%emt 0:04:35][%cal Ob7b5]} 17. f3 {[%emt 0:07:56]} Ngh6 {[%emt 0:00:37][%cal Ob7b5]} 18. Be3 {[%emt 0:00:51]} Kh8 {[%emt 0:01:40]} (18... Kh7 $16 {was called for.}) 19. Nf4 $18 {[%emt 0:01:01]} Ne5 {[%emt 0:04:06]} 20. b4 {[%emt 0:01:36]} b6 {[%emt 0:05:18]} 21. Ne6 {[%emt 0:01:49]} Bxe6 {[%emt 0:00:09]} 22. dxe6 {[%emt 0:00:02]} Nc6 $2 {[%emt 0:09:35]} (22... Kh7 23. f4 Neg4) 23. Nd5 ({Don't do} 23. bxc5 bxc5 24. Bxh6 Qc8 $18) (23. Bxh6 $142 Nxb4 24. Nd5) 23... Nxb4 $2 {[%emt 0:04:42]} (23... Ng8 {might work better.} 24. Rb1 Rb8 25. bxc5 bxc5) 24. Nxb4 {[%emt 0:12:38]} cxb4 {[%emt 0:00:02]} 25. Qxb4 $2 {[%emt 0:00:34]} (25. Bxh6 $18 {has better winning chances.} Qc8 26. Be3) 25... Qc8 {[%emt 0:00:10]} 26. Qxb6 {[%emt 0:09:25] White is much more active.} Qxe6 {[%emt 0:00:07]} 27. Rb1 {[%emt 0:00:42]} (27. c5 $16) 27... f5 $11 {[%emt 0:03:33]} 28. Bd3 {[%emt 0:01:17]} Qf6 {[%emt 0:04:45]} (28... fxe4 {looks sharper.} 29. Bxe4 Rab8 30. Qxa6 Rxb1 31. Rxb1 Ng4) 29. Bf2 $36 {[%emt 0:03:17][%mdl 2048] White fights for an advantage.} f4 {[%emt 0:02:42]} 30. e5 {[%emt 0:06:48]} Qxe5 {[%emt 0:00:43]} 31. Rfe1 {[%emt 0:00:20]} Qf6 {[%emt 0:00:05]} 32. Be4 {[%emt 0:01:13]} Rad8 {[%emt 0:01:05]} 33. Qxa6 {[%emt 0:01:17]} Nf5 {[%emt 0:01:03]} 34. Qb5 {[%emt 0:01:22]} (34. Bxf5 $5 gxf5 35. c5 $14) 34... Rb8 $2 {[%emt 0:01:03]} (34... e5 $11) 35. Qa5 $2 {[%emt 0:04:13]} (35. Qxb8 $18 Rxb8 36. Rxb8+ Kh7 37. Bxf5 gxf5 38. Rb7) 35... Rxb1 {[%emt 0:00:26]} 36. Bxb1 {[%emt 0:01:10]} e5 {[%emt 0:00:39]} 37. Bxf5 {[%emt 0:00:29]} gxf5 {[%emt 0:00:27]} 38. Qc7 {[%emt 0:02:42]} (38. a4 $16) 38... Rf7 {[%emt 0:00:44] [#]} (38... Rg8 $11 {keeps the balance.}) 39. Qc6 $1 $16 {[%emt 0:01:39]} Bf8 {[%emt 0:00:34]} (39... Qg6 $142) 40. Rb1 {[%emt 0:02:09]} (40. a4 $142) 40... Rg7 {[%emt 0:00:58] And now ...Qg6 would win.} 41. Qe8 {[%emt 0:03:52] aiming for a4.} Rf7 $2 {[%emt 0:10:22][%mdl 8192]} (41... Kg8 $16) 42. a4 $18 {[%emt 0:02:27][%cal Ba2a4,Ba4a5][%mdl 32] Hoping for a5.} Qg6 $2 {[%emt 0:03:08]} (42... Qg7 43. a5 e4) 43. a5 {[%emt 0:02:53] White is clearly winning.} e4 {[%emt 0:00:24]} 44. Kf1 {[%emt 0:03:02] [#] Rb7 is the strong threat.} e3 {[%emt 0:03:05]} 45. Be1 {[%emt 0:01:41] Strongly threatening a6.} d5 {[%emt 0:03:37]} 46. Ke2 $4 {[%emt 0:04:33][%mdl 40960] Weighted Error Value: White=0.42/Black=0.56. Sensor Board Error (Ke4/e5)?} (46. Rb6 $18 Qg7 47. cxd5) 1-0

[Event "GER-chT States Women 2022"]
[Site "Braunfels"]
[Date "2022.06.19"]
[Round "5.5"]
[White "Just, Anita"]
[Black "Kuckling, Hannah"]
[Result "1-0"]
[ECO "B47"]
[WhiteElo "1895"]
[BlackElo "2070"]
[Annotator "TA"]
[PlyCount "67"]
[EventDate "2022.06.15"]
[EventType "swiss"]
[EventCountry "GER"]
[SourceTitle "playchess.com"]
[Source "ChessBase"]
[SourceQuality "1"]
[TimeControl "40/5400+30:1800+30"]

{[%evp 9,67,26,43,0,61,65,67,34,75,68,138,60,175,169,175,137,231,231,220,189,187,157,299,306,264,215,485,489,488,446,420,315,400,354,385,395,622,582,619,576,3232,2866,1792,1091,1069,1016,29983,1600,2200,2095,29987,29988,29988,29989,29996,29997,29997,29998,29998,29999]} 1. e4 {[%emt 0:00:01]} c5 {[%emt 0:00:06]} 2. Nf3 {[%emt 0:00:06]} e6 {[%emt 0:00:06]} 3. d4 {[%emt 0:00:05]} cxd4 {[%emt 0:00:05]} 4. Nxd4 {[%emt 0:00:05]} Nc6 {[%emt 0:00:05]} 5. Nc3 {[%emt 0:00:17]} Qc7 {[%emt 0:00:06]} 6. Nxc6 {[%emt 0:01:03] B47: Sicilian: Taimanov: 5 Nc3 Qc7 6 f4, 6 g3 and 6 Be2.} Qxc6 {[%emt 0:00:21]} (6... bxc6 $11 7. Be3 Rb8) 7. Bd3 {[%emt 0:00:11] White is more active.} a6 {[%emt 0:00:09]} 8. Qe2 {[%emt 0:00:20] White is slightly better.} Bb4 {[%emt 0:04:22]} 9. Bd2 {[%emt 0:01:27]} Nf6 {[%emt 0:03:14]} (9... Bc5 $14) 10. O-O {[%emt 0:01:45] [#]} (10. e5 $16 Nd5 11. O-O) 10... Be7 $146 {[%emt 0:18:54]} (10... b6 $14) ({Predecessor:} 10... d6 11. a3 Bc5 12. Kh1 O-O 13. f4 Qc7 14. Qf3 Bd7 15. Rae1 Bc6 16. Qh3 Bd4 {1-0 (62) Kalkhof,S (1878)-Pfefferkorn,K Germany 2019}) 11. e5 $18 {[%emt 0:07:29]} Nd5 {[%emt 0:01:01]} 12. Qg4 {[%emt 0:02:04]} g5 {[%emt 0:11:29] [#]} (12... Kf8 $16 13. Nxd5 Qxd5) 13. Ne4 $1 {[%emt 0:15:47]} ({Inferior is} 13. Bxg5 Rg8 14. Nxd5 exd5 $17) 13... h5 {[%emt 0:01:09]} 14. Qf3 {[%emt 0:01:01]} g4 {[%emt 0:01:01]} 15. Qe2 {[%emt 0:01:06] aiming for c4.} Qc7 {[%emt 0:12:06]} (15... b5 $16 {was necessary.}) 16. c4 {[%emt 0:14:40][%cal Bc2c4,Bc4c5,Bc5d6][%mdl 32]} Nb4 {[%emt 0:01:13]} 17. c5 {[%emt 0:09:08]} Nc6 {[%emt 0:15:46]} (17... Nxd3 18. Qxd3 b5 19. Nd6+ Kf8) 18. Nd6+ {[%emt 0:02:43]} Bxd6 {[%emt 0:00:35]} 19. cxd6 {[%emt 0:00:29]} Qd8 {[%emt 0:03:13]} 20. a4 {[%emt 0:08:22] Against b5} b6 {[%emt 0:04:58]} 21. Be4 {[%emt 0:03:04]} Bb7 {[%emt 0:00:21]} 22. Qe3 {[%emt 0:01:08]} h4 {[%emt 0:06:30]} (22... a5 $142 23. f4 Ba6) 23. f4 {[%emt 0:02:15]} Rb8 {[%emt 0:09:13]} 24. f5 {[%emt 0:06:28]} Na5 {[%emt 0:00:29]} 25. fxe6 {[%emt 0:04:41]} dxe6 {[%emt 0:00:11]} 26. Qf4 {[%emt 0:03:25][%csl Gf1][%cal Rf4f7]} Rf8 {[%emt 0:02:11] [#]} 27. Bg6 $3 {[%emt 0:03:16][%mdl 512]} Qd7 {[%emt 0:00:33]} (27... Kd7 28. Bxf7) 28. Qf6 {[%emt 0:01:20]} (28. Qxg4 $142 Bf3 29. Rxf3 Kd8 30. Qxh4+ Kc8 31. Rc1+ Nc4 32. Rxc4+ Kb7 33. Qe7) 28... Bxg2 {[%emt 0:02:31]} 29. Kxg2 {[%emt 0:01:51]} Qc6+ {[%emt 0:00:09]} 30. Kg1 {[%emt 0:00:22][%csl Gd6][%cal Rf6e7] White mates.} Qc5+ {[%emt 0:00:31]} 31. Rf2 {[%emt 0:00:37][%csl Gd6][%cal Rf6e7]} Rb7 {[%emt 0:00:29]} 32. Qxe6+ {[%emt 0:00:45]} Kd8 {[%emt 0:00:10]} 33. Bg5+ {[%emt 0:00:22]} f6 {[%emt 0:00:14]} 34. Bxf6+ {[%emt 0:00:23] Weighted Error Value: White=0.22 (precise) /Black=0.97} 1-0